Cogmind - Beta 17 @@@ ROGUE MODE // 2026.08.05 @ 16:03:15 Player: beans Result: Destroyed by S-10 Pest with Light Assault Rifle Performance ------------- Evolutions (2) 1000 Regions Visited (4) 800 Robots Destroyed (67) 335 Value Destroyed (1669) 1669 Prototype IDs (0) 0 Alien Tech Used (0) 0 Bonus (200) 200 TOTAL SCORE: 4004 Bonus ------- Entered Garrisons 200 Cogmind --------- Core Integrity 0/550 Matter 300/300 Energy 77/100 System Corruption 2% Temperature Cool (0) Movement Walking (120) Location -8/Garrison Parts ------- > --- POWER (2) -------- (None) > --- PROPULSION (3) --- Carbon-fiber Leg Carbon-fiber Leg > --- UTILITY (4) ------ Improved Heat Sink Advanced Heat Sink > --- WEAPON (2) ------- (None) > --- INVENTORY (5) ---- Particle Gun Particle Gun Particle Gun Heavy Assault Rifle Gauss Rifle Peak State ------------ > --- POWER ------------ Light Nuclear Core Light Angular Momentum Engine > --- PROPULSION ------- Carbon-fiber Leg Carbon-fiber Leg Carbon-fiber Leg > --- UTILITY ---------- Improved Heat Sink Improved Heat Sink Advanced Heat Sink > --- WEAPON ----------- Particle Gun Particle Gun > --- INVENTORY -------- Particle Gun Particle Gun Particle Gun Heavy Assault Rifle Gauss Rifle [Rating: 33] Favorites ----------- Power Light Nuclear Core Engine Improved Ion Engine Power Core Light Nuclear Core Propulsion Light Treads Treads Light Treads Leg Aluminum Leg Utility Heat Sink Device Heat Sink Protection Medium Armor Plating Weapon Particle Gun Energy Gun Particle Gun Ballistic Gun Assault Rifle Build | -11 -10 -9 -8 -8 ------- Run | Yrd Mat Mat Mat Gar Slots Evolved 4 | . . 2 2 . Power 1 | . . . 1 . Propulsion 1 | . . . 1 . Utility 2 | . . 2 . . Weapon . | . . . . . Parts Attached 36 | 5 4 5 3 19 Power 8 | 1 1 1 1 4 Engine 4 | 1 . 1 1 1 Core 4 | . 1 . . 3 Reactor . | . . . . . Propulsion 9 | 2 . . 1 6 Treads 3 | 2 . . 1 . Leg 6 | . . . . 6 Wheel . | . . . . . Hover . | . . . . . Flight . | . . . . . Utility 9 | . 2 3 . 4 Device 8 | . 2 2 . 4 Storage . | . . . . . Processor . | . . . . . Hackware . | . . . . . Protection 1 | . . 1 . . Artifact . | . . . . . Weapon 10 | 2 1 1 1 5 Energy Gun 6 | . 1 1 1 3 Energy Cannon . | . . . . . Ballistic Gun 4 | 2 . . . 2 Ballistic Cannon . | . . . . . Launcher . | . . . . . Special Weapon . | . . . . . Impact Weapon . | . . . . . Slashing Weapon . | . . . . . Piercing Weapon . | . . . . . Special Melee Weapon . | . . . . . Unidentified Prototypes . | . . . . . Parts Lost 22 | . . 1 4 17 Power 6 | . . 1 1 4 Propulsion 6 | . . . 2 4 Utility 5 | . . . 1 4 Weapon 5 | . . . . 5 Highest Loss Streak 6 | . . 1 3 6 To Critical Strikes . | . . . . . Average Backups 3 | . 1 4 4 4 Power . | . . 1 . . Propulsion . | . . . . . Utility . | . . . . . Weapon 2 | . . 1 3 3 Tool/Special . | . . . . . Unused Backups 4 | . . . . 4 Power . | . . . . . Propulsion . | . . . . . Utility . | . . . . . Weapon 3 | . . . . 3 Tool/Special 1 | . . . . 1 Average Slot Usage (%) 83 | . 82 92 89 73 Engine 6 | . 8 4 16 4 Core 6 | . 5 6 . 9 Treads 14 | . 28 22 19 1 Leg 6 | . . . . 17 Device 24 | . 10 29 27 24 Protection 3 | . . 6 7 . Energy Gun 15 | . 5 19 18 13 Ballistic Gun 4 | . 22 2 . 3 Peak Build Rating 33 | 5 10 14 16 33 Average Rating 14 | 3 7 12 14 20 On Entrance 7 | . 5 10 13 10 Avg Prop Armor Cover (%) . | . . . . . Naked Turns . | . . . . . Heaviest Build 30 | 8 12 23 30 24 Greatest Support 60 | 40 40 40 60 45 Greatest Overweight (x) 6 | . . . 1 6 Average Overweight (x) . | . . . . . Largest Inventory Capacity 5 | 5 5 5 5 5 Average Capacity 5 | 5 5 5 5 5 Most Carried 5 | . 3 5 5 5 Average Carried 3 | . 1 4 4 4 Final Capacity 5 | 5 5 5 5 5 Final Carried 5 | . 3 5 5 5 Class Distribution -------------------- 90% | Scavenger-Mutant 9% | Mutant Dominant Class ---------------- Mutant | -10/Materials Scavenger-Mutant | -9/Materials Scavenger-Mutant | -8/Materials Scavenger-Mutant | -8/Garrison Resources | -11 -10 -9 -8 -8 ----------- Run | Yrd Mat Mat Mat Gar Matter Collected 799 | 168 186 150 35 260 Remotely . | . . . . . Salvage Created 2547 | . 210 928 802 607 Parts 144 | . 18 69 28 29 Haulers Intercepted 1 | . . 1 . . Recyclers Shooed 8 | . 1 4 3 . Parts Field Recycled . | . . . . . Retrieved Matter . | . . . . . Parts Self-Destructed . | . . . . . Prevented . | . . . . . Parts Restored . | . . . . . Kills | -11 -10 -9 -8 -8 ------- Run | Yrd Mat Mat Mat Gar Combat Hostiles Destroyed 39 | . 3 13 9 14 Guns 39 | . 3 13 9 14 Classes Destroyed 12 | . 3 8 . 1 Worker 10 | . 2 6 2 . Builder 4 | . 1 2 1 . Tunneler 1 | . . 1 . . Hauler 1 | . . 1 . . Recycler 8 | . . 4 4 . Mechanic 1 | . . 1 . . Operator 1 | . . 1 . . Watcher 2 | . . 1 1 . Swarmer 12 | . . 7 3 2 Grunt 21 | . 3 4 4 10 Sentry 5 | . . 2 2 1 Hunter 1 | . . . . 1 Best Kill Streak 12 | . 5 9 12 5 Combat Bots Only 5 | . 2 4 3 5 Max Kills in Single Turn 2 | . 1 2 2 1 Gunslinging 1 | . . 1 . . Exploded . | . . . . . Melee . | . . . . . Uniques/NPCs Destroyed . | . . . . . Combat | -11 -10 -9 -8 -8 -------- Run | Yrd Mat Mat Mat Gar Hostile Shots Fired 312 | . 13 74 65 160 Missed 93 | . 3 22 26 42 Hits 219 | . 10 52 39 118 Projectile 219 | . 10 52 39 118 Critical Strikes 3 | . . 1 . 2 Damage Taken 2668 | . 123 474 484 1587 Core 671 | . 22 94 98 457 Absorbed by Shields 87 | . . . . 87 Core Remaining (%) 89 | 100 91 76 . . Volleys Fired 232 | 1 16 101 48 66 Largest 2 | 2 2 2 2 2 Hottest 130 | 40 85 121 112 130 Shots Fired 406 | 2 32 168 89 115 Gun 406 | 2 32 168 89 115 Cannon . | . . . . . Launcher . | . . . . . Special . | . . . . . Kinetic 92 | 2 31 34 . 25 Thermal 314 | . 1 134 89 90 Explosive . | . . . . . Electromagnetic . | . . . . . Robot Hit Streak 11 | . 9 7 7 11 Robot Miss Streak 5 | 2 4 5 5 3 Penetration Max . | . . . . . Secondary Targets 9 | . . 1 4 4 Max Gunslinging Chain 1 | . . 1 1 1 Shots Hit Robots 239 | . 13 90 55 81 Core Hits 107 | . 10 39 27 31 Critical Kills . | . . . . . Critical Parts Destroyed . | . . . . . Critical Strikes 16 | . . 3 5 8 Burn 16 | . . 3 5 8 Melee Attacks . | . . . . . Impact . | . . . . . Slashing . | . . . . . Piercing . | . . . . . Sneak Attacks . | . . . . . Combat Hostiles . | . . . . . Follow-up Attacks . | . . . . . Damage Inflicted 3631 | . 212 1269 870 1280 Guns 3631 | . 212 1269 870 1280 Cannons . | . . . . . Explosions . | . . . . . Melee . | . . . . . Ramming . | . . . . . Kinetic 767 | . 195 276 . 296 Thermal 2864 | . 17 993 870 984 Explosive . | . . . . . Electromagnetic . | . . . . . Impact . | . . . . . Slashing . | . . . . . Piercing . | . . . . . Highest Corruption 2 | . . . 1 2 Average Corruption 1 | . . . 1 1 Corruption Purged . | . . . . . Corruption Blocked . | . . . . . Effects 5 | . . . . 5 Message Errors 1 | . . . . 1 Matter Fused 1 | . . . . 1 Heat Flow Errors 1 | . . . . 1 Energy Discharges 2 | . . . . 2 Overload Shots . | . . . . . Overflow Damage . | . . . . . Projectiles . | . . . . . Explosions . | . . . . . Melee . | . . . . . Knockbacks . | . . . . . Impact . | . . . . . Kinetic . | . . . . . Secondary . | . . . . . Self-Inflicted Damage . | . . . . . Shots . | . . . . . Rammed . | . . . . . Targets Rammed . | . . . . . Kicked . | . . . . . Crushed . | . . . . . Highest Temperature 218 | . 12 135 48 218 Average Temperature 17 | . 7 20 9 46 Received Heat Transfer 1012 | . 69 57 180 706 Siege Activations . | . . . . . Martial Activations . | . . . . . Shielding Activations . | . . . . . Robots Disrupted . | . . . . . Combat Hostiles . | . . . . . Robots Corrupted . | . . . . . Combat Hostiles . | . . . . . Parts Fried . | . . . . . Impact Corruptions . | . . . . . Robots Melted . | . . . . . Combat Hostiles . | . . . . . Parts Melted 17 | . . 3 8 6 Heat Transferred 8325 | . 37 2738 2590 2960 Parts Sabotaged . | . . . . . Parts Stolen . | . . . . . Parts Stripped . | . . . . . Power Chain Reactions . | . . . . . Alert | -11 -10 -9 -8 -8 ------- Run | Yrd Mat Mat Mat Gar Maximum Alert Level 1 | . . . 1 1 Low Security (%) 87 | 100 100 100 95 66 Level 1 12 | . . . 4 33 Level 2 . | . . . . . Level 3 . | . . . . . Level 4 . | . . . . . Level 5 . | . . . . . High Security . | . . . . . Max Security . | . . . . . Peak Influence 330 | . 70 185 206 330 Initial 130 | . . 5 73 130 Average 136 | . 32 123 130 198 Influence Increases 1156 | . 95 444 277 340 Destroy 0b10 Robot/C 780 | . 60 260 180 280 Destroy 0b10 Robot/NC 140 | . 15 85 40 . Destroy Leader 136 | . 20 54 52 10 Successful Hack 4 | . . . 4 . Anti-Garrison Action 50 | . . . . 50 Destroy Structure 1 | . . . 1 . Lose Combat Pursuer 45 | . . 45 . . Influence Decreases 856 | . 80 285 251 240 Entered New Map 181 | . . 10 101 70 Time Decay 455 | . 80 265 110 . Lost Part 220 | . . 10 40 170 Squads Dispatched 5 | . 1 1 3 . Investigation 1 | . 1 . . . Extermination . | . . . . . Reinforcement 2 | . . 1 1 . Assault . | . . . . . Garrison 2 | . . . 2 . Intercept . | . . . . . Searches Triggered . | . . . . . Construction Impeded . | . . . . . Haulers Reinforced . | . . . . . Active Scanning Responses . | . . . . . Cargo Convoy Interrupts . | . . . . . Stealth | -11 -10 -9 -8 -8 --------- Run | Yrd Mat Mat Mat Gar Distress Signals 9 | . 2 4 3 . Communications Jammed . | . . . . . Distress Signals . | . . . . . Times Spotted 68 | . 5 28 14 21 Peak Tracking Total 8 | . 3 6 5 8 Tactical Retreats 1 | . . 1 . . Traps | -11 -10 -9 -8 -8 ------- Run | Yrd Mat Mat Mat Gar Traps Triggered 3 | . . . 1 2 Indirectly . | . . . . . Trap Hack Attempts . | . . . . . Triggered . | . . . . . Disarmed . | . . . . . Reprogrammed . | . . . . . Reused . | . . . . . Traps Extracted . | . . . . . Installed . | . . . . . Triggered . | . . . . . Machines | -11 -10 -9 -8 -8 ---------- Run | Yrd Mat Mat Mat Gar Machines Disabled 1 | . . . . 1 Max in Single Turn 1 | . . . . 1 Garrison Relay 1 | . . . . 1 Machines Repaired . | . . . . . Machines Dismantled . | . . . . . Machines Sabotaged . | . . . . . Overloaded Fab Kills . | . . . . . Hacking | -11 -10 -9 -8 -8 --------- Run | Yrd Mat Mat Mat Gar Machines Accessed 2 | . 1 . 1 . Terminals 1 | . 1 . . . Fabricators . | . . . . . Repair Stations . | . . . . . Recycling Units . | . . . . . Scanalyzers . | . . . . . Garrison Access 1 | . . . 1 . Total Hacks 5 | . 4 . 1 . Successful 1 | . . . 1 . Failed 4 | . 4 . . . Catastrophic . | . . . . . Database Lockouts . | . . . . . Manual . | . . . . . Terminals 4 | . 4 . . . Fabricators . | . . . . . Repair Stations . | . . . . . Recycling Units . | . . . . . Scanalyzers . | . . . . . Garrison Access 1 | . . . 1 . Terminal Hacks . | . . . . . Fabricator Hacks . | . . . . . Repair Station Hacks . | . . . . . Recycling Unit Hacks . | . . . . . Scanalyzer . | . . . . . Garrison Access Hacks 1 | . . . 1 . Unlock Access 1 | . . . 1 . Unauthorized Hacks . | . . . . . Terminals . | . . . . . Fabricators . | . . . . . Repair Stations . | . . . . . Recycling Units . | . . . . . Scanalyzers . | . . . . . Garrison Access . | . . . . . Data Cores Recovered . | . . . . . Used . | . . . . . Hacking Detections 2 | . 1 . 1 . Full Trace Events 1 | . 1 . . . Feedback Events . | . . . . . Feedback Blocked . | . . . . . Robot Schematics Acquired . | . . . . . Robots Built . | . . . . . Authchips . | . . . . . Time . | . . . . . Total Robot Build Rating . | . . . . . Part Schematics Acquired . | . . . . . Parts Built . | . . . . . Authchips . | . . . . . Time . | . . . . . Total Part Build Rating . | . . . . . Part Studies Acquired . | . . . . . Parts Repaired . | . . . . . Time . | . . . . . Parts Recycled . | . . . . . Recycled Matter . | . . . . . Retrieved Matter . | . . . . . Retrieved Components . | . . . . . Parts Scanalyzed . | . . . . . Part Schematics Acquired . | . . . . . Parts Damaged . | . . . . . Bothacking | -11 -10 -9 -8 -8 ------------ Run | Yrd Mat Mat Mat Gar Used RIF Installer . | . . . . . Robots Hacked . | . . . . . Non-combat . | . . . . . Combat . | . . . . . Robot Hacks Applied . | . . . . . Relay Couplers Released 4 | . . . . 4 Machine Destruction 4 | . . . . 4 Fabnet Peak Effective % . | . . . . . Robots Rewired . | . . . . . Allies Hacked . | . . . . . Hacks Repelled . | . . . . . Allies | -11 -10 -9 -8 -8 -------- Run | Yrd Mat Mat Mat Gar Total Allies . | . . . . . Largest Group . | . . . . . Highest-Rated Group . | . . . . . Highest-Rated Ally . | . . . . . Total Orders . | . . . . . Ally Attacks . | . . . . . Total Damage . | . . . . . Kills . | . . . . . Allies Corrupted . | . . . . . Allies Melted . | . . . . . Intel | -11 -10 -9 -8 -8 ------- Run | Yrd Mat Mat Mat Gar Active Infowar (turns) 912 | . 73 597 222 20 Terrain 912 | . 73 597 222 20 Robot Analysis Total . | . . . . . Derelict Logs Recovered . | . . . . . Drone Launches . | . . . . . Drone Recoveries . | . . . . . Exploration | -11 -10 -9 -8 -8 ------------- Run | Yrd Mat Mat Mat Gar Turns Passed 1711 | 66 206 597 222 620 Spaces Moved 633 | 39 87 194 47 266 Core 10 | 5 . . . 5 Treads 400 | 34 87 194 47 38 Legs 223 | . . . . 223 Wheels . | . . . . . Hover . | . . . . . Flight . | . . . . . Fastest Speed 50 | 50 160 160 160 120 Average Speed 147 | 145 160 160 163 132 Slowest Speed 350 | 160 160 160 240 350 Overloaded Moves . | . . . . . Propulsion Burnouts . | . . . . . Robots Hopped . | . . . . . Potential Cave-ins . | . . . . . Cave-ins Triggered . | . . . . . Exploration Rate (%) 18 | 4 17 22 6 43 Regions Visited 4 Branch Regions . Pre-discovered Areas . | . . . . . Known Exits Taken 1 | . . . 1 . Unknown Exits Taken 3 | 1 1 1 . . Scrap Searched . | . . . . . Spaces Dug . | . . . . . Terrain Destroyed . | . . . . . Melee . | . . . . . Projectile . | . . . . . AOE . | . . . . . Terrain Rammed . | . . . . . Walls Destroyed . | . . . . . Machines Disabled . | . . . . . Actions | -11 -10 -9 -8 -8 --------- Run | Yrd Mat Mat Mat Gar Total 994 | 44 123 312 102 413 Wait 66 | . 14 7 . 45 Move 630 | 38 86 193 47 266 Hop . | . . . . . Pick Up 12 | . 3 4 2 3 Fast Attach 25 | 5 2 2 1 15 Attach 5 | . . 1 2 2 Detach . | . . . . . Swap 10 | . 2 2 1 5 Drop 9 | . . 2 1 6 Fire 232 | 1 16 101 48 66 Melee . | . . . . . Ram . | . . . . . Kick . | . . . . . Crush . | . . . . . Escape Stasis 5 | . . . . 5 Rewire . | . . . . . Trap . | . . . . . Miscellaneous . | . . . . . Route ------- -11/Scrapyard -10/Materials -9/Materials -8/Materials -8/Garrison (discovered 2 exits: [*Mat x2]) History --------- Turn | Location | Event 31 | -11/Scrapyard | Discovered new exit (range 15) 67 | -11/Scrapyard | Entered Materials 233 | -10/Materials | Discovered new exit (range 16) 273 | -10/Materials | Entered another Materials area 273 | -9/Materials | Evolved 2 slots: Utility x2 474 | -9/Materials | Build established: Scavenger-Mutant 732 | -9/Materials | Discovered new exit (range 12) 870 | -9/Materials | Entered another Materials area 870 | -8/Materials | Evolved 2 slots: Power x1, Propulsion x1 940 | -8/Materials | Garrison activated, responded to threat 1092 | -8/Materials | Identified exit to Garrison 1092 | -8/Materials | Entered Garrison 1097 | -8/Garrison | Lost 3 parts (1p1n1u) 1157 | -8/Garrison | Triggered checkpoint 1164 | -8/Garrison | Triggered checkpoint 1236 | -8/Garrison | Lost 4 parts (1n1u2w) 1329 | -8/Garrison | Core integrity fell below 50% 1357 | -8/Garrison | Lost 5 parts (2p1n1u1w) 1456 | -8/Garrison | Discovered new exit (range 9) 1491 | -8/Garrison | Triggered checkpoint 1541 | -8/Garrison | Garrison Relay disabled 1630 | -8/Garrison | Triggered checkpoint 1644 | -8/Garrison | Core integrity fell below 20% 1689 | -8/Garrison | Discovered new exit (range 16) 1712 | -8/Garrison | Destroyed by S-10 Pest with Light Assault Rifle Last Messages --------------- G-47 Trooper overheating. Aluminum Leg melted. Particle Gun melted. G-47 Trooper destroyed. Switching to secondary target: G-47 Trooper. Lgt. Nuclear Core melted. G-47 Trooper destroyed. Acquired Imp. Heat Sink. Acquired 10 matter. EXIT=FOUND B-36 Bruiser springs to life. Lgt. Angular Momentum Engine destroyed. Destroyed Flight Unit. S-10 Pest destroyed. Lgt. Nuclear Core destroyed. Imp. Heat Sink destroyed. Particle Gun destroyed. Imp. Heat Sink destroyed. S-10 Pest destroyed. Particle Gun destroyed. Map ----- +----------------------------------------------------+ | ?????????????????????????????????????????????????? | | ?????????????????????????????????????????????????? | | ?????????????????????????????????????????????????? | | ?????????????????????????????????????????????????? | | ?????????????????????????????????????????????????? | | ?????????????????????????????????????????????????? | | ?????????????????????????????????????????????????? | | ?????????????????????????????????????????????????? | | ?????????????????????????????????????????????????? | | ?????????????????????????????????????????????????? | | ?????????????????????????????????????????????????? | | ?????????????????????????????????????????????????? | | ?????????????????????????????????????????????????? | | ?????????????????????????????????????????????????? | | ?????????????????????????????????????????????????? | | ??????????????#########??????????????????????????? | | ????????????? ?????????????????????????? | | ????????????? ?????????????????????????? | | ???????????? ?????????????????????????? | | ???????????? ?????????????????????????? | | ???????????? ????????????????????????? | | ??????????? ????????????????????????? | | ??????????? ????????????????????????? | | ?????????? ############????????????? | | ?????????? [% #????????????? | | ?????????? < *@^ #????????????? | | ?????????? ss%######### #????????????? | | ?????????? b=????????# #????????????? | | ??????????? b ?????????# #????????????? | | ??????????? b ?????????# #????????????? | | ???????????? ??????????# #????????????? | | ???????????? ??????????# #????????????? | | ???????????? ???????????# #????????????? | | ?????????????p ???????????# #??????####### | | ????????????? ????????????# #??##### | | ?????????????? ####????????????# #??# " | | ??????????????###????????????????# #??# ### #### | | ?????????????????????????????????# #??????# #??? | | ?????????????????????????????????# #??????# #??? | | ?????????????????????????????????# #??????# #??? | | ?????????????????????????????????# ######## #??? | | ?????????????????????????????????# ## % ## #??? | | ????????????????????????????????## ##% = ## ##?? | | ????????????????????????????????# = ##+ | | ????????????????????????????????# [ | | ????????????????????????????????# % | | ????????????????????????????????# ## ## ### | | ????????????????????????????????# ## ## ### | | ????????????????????????????????" # | | ????????????????????????????????" # | +----------------------------------------------------+ Best States ------------- Heat Dissipation 92 Energy Generation 27 Energy Capacity 430 Matter Stores 300 Matter Capacity 300 Sight Range 16 Terrain Scan Range 14 Terrain Scan Density 10 Armor Coverage 225 Evasion (%) 55 Recoil Reduction 3 Item Schematics ----------------- None Robot Schematics ------------------ None Fabricated ------------ Nothing Repaired ---------- Nothing Studied --------- None Alien Tech Used ----------------- None Achievements -------------- None Challenges ------------ None Game ------ Seed UltimateDisintegrationScrap Manual? 0 Play Time 00:11:43 Cumulative 377.9 hours Start 2026.08.05 @ 15:54:34 End 2026.08.05 @ 16:03:15 Sessions 1 Manual Loads 0 Difficulty Rogue Special Mode None Game No. 929 Rogue 927 Adventurer 2 Explorer 0 Win Type - Total 1 Types 1/0/0/0/0/0/0/0/0/0 Lore% 55 Gallery% 67 Achievement% 53 Wizard Run 0 Options --------- Layout 2 ASCII 0 Keyboard 0 Movement Mouse Keybinds 0 Fullscreen 1 Font 24/Smallcaps Map View 50x44 Zoom Use 0% Tactical HUD 0 Map Filters NONE Filters NONE Steam 1 RUN: 39ca5382-4b58-4fee-86a2-3e9c1df3bf4a